bitfinex/quotes_SOLUSD_20260223
["timestamp","ask_amount","ask_price","bid_price","bid_amount"]
[1771833912514,12.62482798,79.209,79.181,12.62929238]
[1771833912714,13.14346498,79.2,79.181,12.62929238]
[1771833913115,13.14346498,79.2,79.173,31.57639664]
[1771833913116,13.14346498,79.2,79.177,12.62991828]
[1771833913317,12.62482798,79.209,79.177,14.18776389]
[1771833914129,4.90732728,79.2,79.177,1.55784561]
[1771833915437,4.90732728,79.2,79.166,1.55784561]
[1771833915625,4.90732728,79.2,79.167,1.55784561]
[1771833915833,12.62416752,79.214,79.168,1.55784561]
[1771833916017,4.90732728,79.22,79.169,1.55784561]
[1771833916218,4.90732728,79.21,79.171,1.55784561]
[1771833917339,4.9063175,79.21,79.171,1.55784561]
[1771833918137,12.62482798,79.209,79.172,12.63072803]
[1771833918337,12.62482798,79.209,79.173,1.55784561]
[1771833919236,12.62482798,79.209,79.175,1.55784561]
[1771833921142,4.9063175,79.23,79.178,1.55784561]
[1771833921349,4.9063175,79.23,79.18,1.55784561]
[1771833922038,31.55178209,79.235,79.18,1.55784561]
[1771833922348,4.9063175,79.23,79.18,1.55784561]
[1771833924149,4.9063175,79.23,79.179,47.63988106]
[1771833924150,12.62164106,79.229,79.182,1.55784561]
[1771833925144,12.61941117,79.243,79.184,1.55784561]
[1771833925350,12.61941117,79.243,79.186,1.55784561]
[1771833925645,12.61941117,79.243,79.189,1.55784561]
[1771833926228,12.61845575,79.249,79.191,1.55784561]
[1771833926842,4.9063175,79.24,79.191,1.55784561]
[1771833928127,12.6200482,79.239,79.192,44.19638346]
[1771833928335,12.6200482,79.239,79.193,1.55784561]
[1771833929864,4.9063175,79.24,79.193,1.55784561]
[1771833930154,17.5262587,79.24,79.193,1.55784561]
[1771833930939,17.5262587,79.24,79.196,1.55784561]
[1771833931952,4.9063175,79.23,79.196,1.55784561]
[1771833932159,4.9063175,79.22,79.196,1.55784561]
[1771833932357,4.9063175,79.22,79.197,47.63988106]
[1771833932753,4.9063175,79.22,79.192,1.55784561]
[1771833933251,12.62323432,79.219,79.192,1.55784561]
[1771833934256,12.62323432,79.219,79.194,1.55784561]
[1771833935558,4.9063175,79.21,79.183,1.55784561]
[1771833936137,44.18132013,79.219,79.183,1.55784561]
[1771833936338,4.9063175,79.21,79.183,1.55784561]
[1771833937552,12.62482798,79.209,79.183,1.55784561]
[1771833938569,4.9063175,79.2,79.183,1.55784561]
[1771833939761,4.9063175,79.2,79.183,14.18675088]
[1771833940961,4.9063175,79.21,79.184,1.55784561]
[1771833945566,12.62482798,79.209,79.185,1.55784561]
[1771833945951,12.62482798,79.209,79.186,1.55784561]
[1771833946469,31.55384706,79.23,79.187,1.55784561]
[1771833946769,4.9063175,79.22,79.189,1.55784561]
[1771833947567,4.9063175,79.21,79.189,1.55784561]
[1771833947764,4.9063175,79.21,79.192,1.55784561]
[1771833949572,17.52939248,79.22,79.192,1.55784561]
[1771833950469,12.62241165,79.225,79.194,1.55784561]
[1771833951579,4.9063175,79.23,79.196,1.55784561]
[1771833951871,4.9063175,79.23,79.198,1.55784561]
[1771833955674,4.9063175,79.23,79.2,1.55784561]
[1771833956276,12.62164106,79.229,79.2,1.55784561]
[1771833957277,12.62164106,79.229,79.203,1.55784561]
[1771833958278,3.69383402,79.263,79.203,1.55784561]
[1771833958575,4.9063175,79.25,79.205,1.55784561]
[1771833958751,4.9063175,79.24,79.205,1.55784561]
[1771833959563,17.52627823,79.24,79.207,1.55784561]
[1771833960283,12.61938882,79.244,79.207,1.55784561]
[1771833961083,4.9063175,79.23,79.197,1.55784561]
[1771833962466,12.62041514,79.237,79.199,1.55784561]
[1771833962770,4.9063175,79.23,79.199,1.55784561]
[1771833963160,4.9063175,79.23,79.201,1.55784561]
[1771833963362,4.9063175,79.22,79.201,1.55784561]
[1771833963580,4.9063175,79.23,79.201,1.55784561]
[1771833964473,12.61845575,79.249,79.205,1.55784561]
[1771833964675,12.61845575,79.249,79.207,1.55784561]
[1771833965579,4.9063175,79.24,79.207,1.55784561]
[1771833968082,12.6200482,79.239,79.209,1.55784561]
[1771833969087,12.6200482,79.239,79.21,1.55784561]
[1771833969680,4.9063175,79.24,79.21,1.55784561]
[1771833970085,4.9063175,79.23,79.198,1.55784561]
[1771833972473,4.9063175,79.24,79.2,1.55784561]
[1771833973387,4.9063175,79.23,79.2,1.55784561]
[1771833973682,4.9063175,79.23,79.202,1.55784561]
[1771833974968,4.9063175,79.23,79.204,1.55784561]
[1771833976088,4.9063175,79.23,79.206,1.55784561]
[1771833977787,4.9063175,79.23,79.208,1.55784561]
[1771833978181,4.9063175,79.23,79.21,1.55784561]
[1771833978488,17.52620827,79.24,79.21,1.55784561]
[1771833979419,4.9034304,79.24,79.212,1.55784561]
[1771833979886,4.9034304,79.23,79.207,47.63988106]
[1771833980088,4.9034304,79.23,79.207,49.19772667]
[1771833980293,4.9034304,79.23,79.208,1.55784561]
[1771833980788,4.9034304,79.23,79.209,1.55784561]
[1771833981392,12.62164106,79.229,79.209,1.55784561]
[1771833983975,12.62164106,79.229,79.203,1.55784561]
[1771833984489,4.9034304,79.22,79.198,1.55784561]
[1771833985278,1.22000283,79.209,79.162,47.63988106]
[1771833985485,1.21892631,79.179,79.131,63.18636185]
[1771833985680,4.9034304,79.18,79.131,44.23045329]
[1771833985893,4.9034304,79.18,79.131,94.77954277]
[1771833986084,4.9034304,79.18,79.134,3.69383402]
[1771833986288,4.9034304,79.18,79.138,3.69383402]
[1771833986677,4.9034304,79.18,79.135,44.2282176]
[1771833987085,4.9034304,79.18,79.138,3.69383402]
[1771833987370,4.9034304,79.18,79.139,1.25917283]
[1771833988172,4.9034304,79.18,79.141,1.25917283]
[1771833988377,4.9034304,79.19,79.141,1.25917283]
[1771833988578,13.8437869,79.189,79.141,1.25917283]
[1771833989414,1.21577039,79.188,79.141,1.25917283]
[1771833990184,1.21474249,79.186,79.143,1.25917283]
[1771833990496,4.9034304,79.18,79.143,1.25917283]
[1771833992610,4.9034304,79.18,79.145,1.25917283]
[1771833993306,6.06192849,79.18,79.145,1.25917283]
[1771833993711,1.14017898,79.179,79.147,1.25917283]
[1771833993914,1.14017898,79.179,79.149,1.25917283]
[1771833994092,1.14017898,79.178,79.149,1.25917283]
[1771833994443,1.14017898,79.159,79.14,1.25917283]
[1771833994789,1.12207029,79.149,79.131,1.25917283]
[1771833995604,1.12207029,79.149,79.131,12.63727237]
[1771833996904,1.0864745,79.156,79.132,1.25917283]
[1771833997113,0.8864745,79.139,79.106,1.25917283]
[1771833997413,4.9034304,79.13,79.112,1.25917283]
[1771833998009,0.66898265,79.159,79.1,1.45917283]
[1771833998212,0.66898265,79.142,79.102,1.25917283]
[1771833999717,0.63459939,79.148,79.102,1.25917283]
[1771834000099,0.63459939,79.148,79.104,1.25917283]
[1771834000514,0.63459939,79.146,79.104,1.25917283]
[1771834001326,0.61770338,79.159,79.107,1.25917283]
[1771834001634,0.61770338,79.167,79.107,1.25917283]
[1771834002498,0.61770338,79.167,79.112,1.25917283]
[1771834002696,0.58406393,79.165,79.112,1.25917283]
[1771834002935,0.58406393,79.159,79.112,1.25917283]
[1771834003107,0.58406393,79.139,79.112,1.25917283]
[1771834004523,0.58406393,79.139,79.114,1.25917283]
[1771834005119,4.9034304,79.17,79.114,1.25917283]
[1771834005324,0.54893026,79.169,79.114,1.25917283]
[1771834007626,0.48105196,79.167,79.116,1.14891959]
[1771834010015,0.48105196,79.167,79.118,1.14891959]
[1771834011306,0.43216249,79.165,79.118,1.14891959]
[1771834011617,4.9034304,79.16,79.118,1.14891959]
[1771834011806,0.41623893,79.159,79.12,1.14891959]
[1771834012007,0.41623893,79.159,79.122,1.14891959]
[1771834012622,0.41623893,79.159,79.124,1.14891959]
[1771834015834,0.41623893,79.159,79.126,1.14891959]
[1771834018119,0.41623893,79.159,79.128,1.14891959]
[1771834019921,4.9034304,79.16,79.115,1.14891959]
[1771834019922,0.29526125,79.139,79.115,1.14891959]
[1771834020429,0.29526125,79.139,79.116,12.63966833]
[1771834020627,0.29526125,79.139,79.117,1.14891959]
[1771834021331,0.28091013,79.149,79.117,1.14891959]
[1771834021540,0.26672385,79.159,79.117,1.14891959]
[1771834021836,0.26672385,79.159,79.119,1.14891959]
[1771834024233,0.26672385,79.159,79.121,1.14891959]
[1771834024620,0.26672385,79.159,79.122,47.63988106]
[1771834024943,0.26672385,79.159,79.123,1.14891959]
[1771834026637,0.19819946,79.181,79.128,1.14891959]
[1771834026837,11.50857677,79.2,79.133,1.14891959]
[1771834027020,4.9034304,79.2,79.137,1.14891959]
[1771834029248,4.9034304,79.2,79.142,1.14891959]
[1771834029855,12.62642205,79.199,79.142,1.14891959]
[1771834031252,4.9034304,79.18,79.144,1.14891959]
[1771834031757,4.9034304,79.18,79.146,1.14891959]
[1771834032435,4.9034304,79.19,79.146,1.14891959]
[1771834033262,4.9034304,79.18,79.148,1.14891959]
[1771834035735,4.9034304,79.19,79.15,1.14891959]
[1771834036353,4.9034304,79.19,79.152,1.14891959]
[1771834037349,12.62801651,79.189,79.153,12.63375993]
[1771834037657,12.62801651,79.189,79.153,13.71178246]
[1771834037840,12.62801651,79.189,79.154,1.07802253]
[1771834039561,4.9034304,79.19,79.155,45.29506503]
[1771834039758,4.9034304,79.19,79.155,44.2170425]
[1771834040058,4.9034304,79.19,79.156,1.07802253]
[1771834040758,4.9034304,79.19,79.156,47.63988106]
[1771834040759,4.9034304,79.18,79.156,47.63988106]
[1771834041062,4.9034304,79.17,79.156,47.63988106]
[1771834041249,4.91096805,79.17,79.156,47.63988106]
[1771834041445,4.91096805,79.18,79.157,47.63988106]
[1771834042555,4.91096805,79.18,79.158,12.63296192]
[1771834042864,4.91096805,79.19,79.159,1.07802253]
[1771834043857,3.69383402,79.226,79.161,1.07802253]
[1771834043858,4.91096805,79.2,79.161,1.07802253]
[1771834044060,4.91096805,79.2,79.163,1.07802253]
[1771834044854,12.62642205,79.199,79.165,1.07802253]
[1771834045858,4.91096805,79.2,79.167,1.07802253]
[1771834047467,44.17964706,79.222,79.167,1.07802253]
[1771834047766,4.91096805,79.21,79.169,1.07802253]
[1771834048567,17.53570964,79.21,79.171,1.07802253]
[1771834050050,4.91096805,79.24,79.171,1.07802253]
[1771834050051,50.45653358,79.277,79.175,3.69383402]
[1771834050250,4.91096805,79.26,79.18,1.07802253]
[1771834050565,12.61671675,79.26,79.18,1.07802253]
[1771834050751,12.61671675,79.26,79.185,1.07802253]
[1771834051075,4.91096805,79.26,79.185,1.07802253]
[1771834052053,4.91096805,79.26,79.19,1.07802253]
[1771834052570,12.61580573,79.266,79.19,1.07802253]
[1771834053259,4.91096805,79.26,79.195,1.07802253]
[1771834055677,4.91096805,79.26,79.2,1.07802253]
[1771834055880,4.91096805,79.26,79.205,1.07802253]
[1771834056075,4.91096805,79.23,79.197,1.07802253]
[1771834057561,4.91096805,79.23,79.198,12.62658147]
[1771834060579,12.62164106,79.229,79.198,12.62658147]
[1771834062373,12.62164106,79.229,79.182,3.69383402]
[1771834062374,4.91096805,79.21,79.197,47.63988106]
[1771834062580,4.91096805,79.21,79.158,1.07802253]
[1771834062789,4.91096805,79.19,79.143,1.07802253]
[1771834062956,4.91096805,79.19,79.146,1.07802253]
[1771834063982,4.91096805,79.18,79.146,1.07802253]
[1771834064183,4.91096805,79.17,79.139,1.07802253]
[1771834064383,4.91096805,79.18,79.139,1.07802253]
[1771834066382,4.91096805,79.18,79.126,3.69383402]
[1771834066383,4.91096805,79.17,79.14,12.63583522]
[1771834067586,4.91096805,79.17,79.14,31.58958807]
[1771834068286,4.91096805,79.18,79.141,1.07802253]
[1771834069592,4.91096805,79.19,79.143,1.07802253]
[1771834069883,4.91096805,79.19,79.144,1.07802253]
[1771834070081,4.91096805,79.19,79.146,1.07802253]
[1771834072588,4.91096805,79.2,79.151,1.07802253]
[1771834074677,4.91096805,79.21,79.153,1.07802253]
[1771834074883,4.91096805,79.2,79.155,1.07802253]
[1771834075077,4.91096805,79.2,79.157,1.07802253]
[1771834077289,4.91096805,79.2,79.159,1.07802253]
[1771834079588,4.91096805,79.19,79.161,1.07802253]
[1771834079790,4.91096805,79.2,79.161,1.07802253]
[1771834080291,4.91096805,79.2,79.162,47.63988106]
[1771834080494,4.91096805,79.2,79.163,1.07802253]
[1771834082496,31.55535103,79.226,79.165,1.07802253]
[1771834082689,4.91096805,79.2,79.167,1.07802253]
[1771834082885,4.91096805,79.2,79.169,1.07802253]
[1771834083590,4.91096805,79.2,79.164,44.21201555]
[1771834083591,0.54699189,79.179,79.109,126.40786762]
[1771834083894,0.54699189,79.159,79.12,3.69383402]
[1771834084485,3.69383402,79.212,79.146,0.81250721]
[1771834084705,4.91096805,79.18,79.146,0.81250721]
[1771834087598,4.91096805,79.17,79.147,12.63471767]
[1771834087798,9.8219361,79.16,79.124,12.63839037]
[1771834087993,4.91096805,79.15,79.124,12.63839037]
[1771834088181,4.91096805,79.14,79.124,12.63839037]
[1771834088383,4.91096805,79.13,79.11,31.60151386]
[1771834088796,4.91096805,79.14,79.111,44.24163516]
[1771834089783,4.91096805,79.13,79.111,12.64046719]
[1771834090089,4.91096805,79.13,79.1,12.84209679]
[1771834090689,39.36890087,79.16,79.101,0.81250721]
[1771834090890,4.91096805,79.14,79.101,0.81250721]
[1771834091204,4.91096805,79.15,79.101,0.81250721]
[1771834091992,4.91096805,79.15,79.1,44.44765936]
[1771834091993,4.91096805,79.14,79.103,0.81250721]
[1771834093102,4.91096805,79.15,79.103,0.81250721]
[1771834093284,13.16219918,79.15,79.103,0.81250721]
[1771834094203,13.16219918,79.15,79.105,0.81250721]
[1771834096183,13.16219918,79.15,79.1,0.2]
[1771834096184,13.16219918,79.16,79.11,0.81250721]
[1771834096509,13.16219918,79.15,79.112,0.81250721]
[1771834097284,13.16219918,79.14,79.112,0.81250721]
[1771834097486,13.16219918,79.14,79.114,0.81250721]
[1771834097698,13.16219918,79.14,79.113,47.63988106]
[1771834097910,13.16219918,79.13,79.113,47.63988106]
[1771834098101,13.16219918,79.13,79.113,60.28000938]
[1771834098303,3.69383402,79.172,79.097,0.81250721]
[1771834098304,13.16219918,79.12,79.097,0.81250721]
[1771834098505,13.16219918,79.12,79.102,12.6418433]
[1771834099592,13.16219918,79.11,79.095,12.64301079]
[1771834100512,13.16219918,79.11,79.091,12.64358497]
[1771834100710,13.16219918,79.11,79.086,12.64440672]
[1771834101291,13.17562366,79.11,79.086,12.64440672]
[1771834101492,13.17562366,79.11,79.08,0.2]
[1771834102108,13.17562366,79.09,79.08,0.2]
[1771834104312,13.17562366,79.1,79.08,0.2]
[1771834105015,13.17562366,79.09,79.08,1e-08]
[1771834105197,13.17562366,79.09,79.07,0.2]
[1771834106613,13.17562366,79.08,79.07,1e-08]
[1771834106793,44.25394176,79.089,79.07,1e-08]
[1771834106994,12.64398336,79.089,79.07,1e-08]
[1771834109818,13.17562366,79.11,79.07,0.81250722]
[1771834110410,12.63934882,79.118,79.07,0.81250722]
[1771834111210,13.17562366,79.11,79.072,0.81250721]
[1771834111607,12.63934882,79.118,79.072,0.81250721]
[1771834111807,12.63934882,79.118,79.071,44.26401588]
[1771834111808,12.63934882,79.118,79.074,0.81250721]
[1771834112005,12.6379112,79.127,79.074,0.81250721]
[1771834112208,12.6379112,79.127,79.076,0.81250721]
[1771834112720,13.17562366,79.12,79.076,0.81250721]
[1771834112910,12.63599489,79.139,79.076,0.81250721]
[1771834113299,44.22598212,79.139,79.078,0.81250721]
[1771834113592,13.17562366,79.13,79.078,0.81250721]
[1771834113798,13.17562366,79.12,79.078,0.81250721]
[1771834115220,3.69383402,79.136,79.078,0.81250721]
[1771834115411,166.3,79.301,79.07,1e-08]
[1771834115412,13.17562366,79.17,79.081,0.81250721]
[1771834115612,13.17562366,79.19,79.083,0.81250721]
[1771834115913,44.19247717,79.199,79.083,0.81250721]
[1771834116216,12.62642205,79.199,79.088,0.81250721]
[1771834117518,12.62642205,79.199,79.093,0.81250721]
[1771834118926,12.62642205,79.199,79.098,0.81250721]
[1771834120311,13.17562366,79.18,79.098,0.81250721]
[1771834121230,13.17562366,79.18,79.104,0.81250721]
[1771834121231,25.80515024,79.18,79.104,0.81250721]
[1771834121420,25.80515024,79.18,79.1,208.59671299]
[1771834121421,25.80515024,79.18,79.109,0.81250721]
[1771834123327,25.80515024,79.18,79.111,0.81250721]
[1771834123328,13.17562366,79.17,79.111,0.81250721]
[1771834123515,57.37877994,79.18,79.111,0.81250721]
[1771834124233,13.17562366,79.17,79.111,0.81250721]
[1771834124530,57.37877994,79.18,79.113,0.81250721]
[1771834124734,13.17562366,79.17,79.113,0.81250721]
[1771834125142,13.17562366,79.18,79.114,44.23995752]
[1771834125329,13.17562366,79.17,79.115,0.81250721]
[1771834125718,13.17562366,79.15,79.103,12.64174557]
[1771834125934,13.17562366,79.15,79.103,44.2461095]
[1771834126116,13.17562366,79.15,79.103,45.05861671]
[1771834126318,13.17562366,79.15,79.104,0.81250721]
[1771834126934,13.17562366,79.16,79.104,0.81250721]
[1771834127238,25.8083897,79.16,79.106,0.81250721]
[1771834127836,13.17562366,79.16,79.106,0.81250721]
[1771834128029,12.63280233,79.159,79.106,0.81250721]
[1771834130041,12.63280233,79.159,79.108,0.81250721]
[1771834131937,12.63072803,79.172,79.108,0.81250721]
[1771834132238,3.69383402,79.189,79.112,0.81250721]
[1771834132239,12.63120665,79.169,79.112,0.81250721]
[1771834134625,12.63120665,79.169,79.114,0.81250721]
[1771834135737,44.20922329,79.169,79.114,0.81250721]
[1771834135942,44.20922329,79.169,79.116,0.81250721]
[1771834137435,44.20922329,79.169,79.118,0.81250721]
[1771834139034,44.20922329,79.169,79.12,0.81250721]
[1771834141827,44.20922329,79.169,79.122,0.81250721]
[1771834143127,13.17562366,79.15,79.09,0.78569126]
[1771834143426,4.91803944,79.13,79.09,0.78569126]
[1771834143627,4.91803944,79.12,79.09,0.78569126]
[1771834144344,4.91803944,79.12,79.094,12.64318405]
[1771834145126,4.91803944,79.12,79.095,0.79909924]
[1771834146457,4.91803944,79.12,79.087,0.79909924]
[1771834146658,4.91803944,79.11,79.089,0.79909924]
[1771834147163,4.91803944,79.1,79.088,12.64414323]
[1771834147337,13.17818613,79.1,79.088,12.64414323]
[1771834148160,13.17818613,79.1,79.084,12.64468062]
[1771834148454,13.17818613,79.09,79.068,0.79909924]
[1771834148635,13.17818613,79.09,79.035,0.79909924]
[1771834148829,13.17818613,79.09,79.038,0.79909924]
[1771834149830,3.69383402,79.127,79.038,0.79909924]
[1771834150035,13.17818613,79.09,79.039,0.79909924]
[1771834150232,13.17818613,79.09,79.044,3.69383402]
[1771834150439,12.64398336,79.089,79.045,0.79909924]
[1771834150735,13.17818613,79.08,79.045,0.79909924]
[1771834151837,12.64268421,79.098,79.045,0.79909924]
[1771834152157,13.17818613,79.09,79.045,0.79909924]
[1771834152459,13.17818613,79.09,79.047,0.79909924]
[1771834152633,12.64278092,79.097,79.047,0.79909924]
[1771834152838,13.17818613,79.12,79.05,0.79909924]
[1771834153150,13.17818613,79.11,79.05,0.79909924]
[1771834155749,13.17818613,79.11,79.055,0.79909924]
[1771834157153,12.63942313,79.118,79.055,0.79909924]
[1771834157353,13.17818613,79.11,79.055,0.79909924]
[1771834159353,13.17818613,79.11,79.072,0.79909924]
[1771834160855,13.17818613,79.11,79.074,0.79909924]
[1771834161356,13.17653362,79.11,79.074,0.79909924]
[1771834162942,13.17653362,79.13,79.076,0.79909924]
[1771834163141,13.17653362,79.13,79.078,0.79909924]
[1771834165142,13.17653362,79.13,79.08,0.79909924]
[1771834166048,12.63759178,79.129,79.08,0.79909924]
[1771834167044,13.17653362,79.12,79.08,0.79909924]
[1771834167455,13.17653362,79.12,79.082,0.79909924]
[1771834168046,13.17653362,79.12,79.083,47.63988106]
[1771834168352,13.17653362,79.12,79.084,0.79909924]
[1771834169263,4.91822129,79.12,79.086,0.79909924]
[1771834173670,4.91822129,79.11,79.088,0.79909924]
[1771834173849,4.91822129,79.11,79.089,47.63988106]
[1771834174665,4.91822129,79.12,79.09,0.79909924]
[1771834175067,4.91822129,79.11,79.09,0.79909924]
[1771834175448,4.91822129,79.12,79.09,0.79909924]
[1771834175764,4.91822129,79.12,79.089,47.63988106]
[1771834175765,4.91822129,79.11,79.091,13.44276286]
[1771834176068,4.91822129,79.11,79.093,0.79909924]
[1771834176966,4.91822129,79.12,79.093,0.79909924]
[1771834177271,4.91822129,79.11,79.093,0.79909924]
[1771834179163,4.91822129,79.11,79.094,12.64318405]
[1771834179354,4.91822129,79.11,79.086,12.64438955]
[1771834179355,4.91822129,79.1,79.086,12.64438955]
[1771834180075,4.91822129,79.11,79.087,0.79909924]
[1771834182578,4.91822129,79.1,79.03,0.2]
[1771834182760,0.4888335,79.079,79.019,63.27592098]
[1771834182963,4.91822129,79.06,79.019,63.27592098]
[1771834183160,5.40705479,79.07,79.019,63.27592098]
[1771834183880,5.40705479,79.07,79.022,3.69383402]
[1771834184377,0.48719322,79.086,79.026,3.69383402]
[1771834184568,0.48719322,79.079,79.026,3.69383402]
[1771834184876,4.91822129,79.07,79.027,0.61178873]
[1771834185962,5.40219024,79.07,79.027,0.61178873]
[1771834187170,0.48396895,79.07,79.029,0.61178873]
[1771834187679,5.40219024,79.07,79.029,0.61178873]
[1771834187982,0.47927011,79.069,79.029,0.61178873]
[1771834188681,0.47927011,79.069,79.032,0.59468658]
[1771834190074,0.47927011,79.069,79.034,0.59468658]
[1771834190587,0.47281572,79.039,79.013,0.59468658]
[1771834190787,12.64673325,79.072,79.015,0.59468658]
[1771834191088,0.47281572,79.079,79.018,0.59468658]
[1771834192593,0.47281572,79.079,79.022,3.69383402]
[1771834192796,0.47281572,79.079,79.023,0.59468658]
[1771834193876,0.46658119,79.078,79.023,0.59468658]
[1771834194597,0.46658119,79.078,79.025,0.59468658]
[1771834196096,0.46658119,79.078,79.028,0.59468658]
[1771834196595,0.46658119,79.078,79.029,35.96898031]
[1771834196784,0.46658119,79.078,79.03,0.59468658]
[1771834197288,0.46055903,79.077,79.03,0.59468658]
[1771834200207,0.46055903,79.077,79.032,0.59468658]
[1771834200705,0.45284737,79.075,79.032,0.59468658]
[1771834201997,0.45097449,79.081,79.032,0.59468658]
[1771834202202,0.45097449,79.098,79.034,0.59468658]
[1771834202403,36.52393328,79.1,79.033,69.21312501]
[1771834202404,0.45097449,79.089,79.036,0.59468658]
[1771834202604,0.45097449,79.089,79.038,0.59468658]
[1771834204405,0.44729303,79.087,79.04,0.59468658]
[1771834206306,0.44729303,79.087,79.042,0.59468658]
[1771834206482,0.44729303,79.087,79.044,0.59468658]
[1771834206688,0.4419279,79.093,79.046,0.59468658]
[1771834207306,0.4419279,79.099,79.048,0.59468658]
[1771834208705,0.43845306,79.097,79.05,0.59468658]
[1771834209012,0.43845306,79.097,79.052,0.59468658]
[1771834211109,0.43845306,79.097,79.053,44.27409459]
[1771834211310,0.43845306,79.097,79.054,0.59468658]
[1771834211990,0.43845306,79.097,79.056,0.59468658]
[1771834213606,0.43845306,79.097,79.058,0.59468658]
[1771834215911,0.43845306,79.097,79.06,0.59468658]
[1771834217210,0.43845306,79.097,79.062,0.59468658]
[1771834217897,0.43845306,79.097,79.064,0.57003006]
[1771834218809,0.4192087,79.079,79.054,12.64958129]
[1771834221521,0.4192087,79.079,79.054,0.57003006]
[1771834223219,0.41336435,79.095,79.054,0.57003006]
[1771834223525,0.41336435,79.095,79.056,0.57003006]
[1771834223700,0.41336435,79.095,79.057,35.96898031]
[1771834223901,0.41336435,79.095,79.058,0.57003006]
[1771834224915,31.59541627,79.126,79.061,0.60623179]
[1771834225112,4.92004942,79.11,79.063,0.60623179]
[1771834225317,4.92004942,79.1,79.057,0.60623179]
[1771834225520,4.92004942,79.09,79.06,0.60623179]
[1771834229630,4.92004942,79.09,79.061,12.64846131]
[1771834229827,4.92004942,79.09,79.062,0.60623179]
[1771834231112,4.92004942,79.1,79.063,12.64814135]
[1771834231320,4.92004942,79.09,79.063,12.64814135]
[1771834233725,4.92004942,79.09,79.063,0.60623179]
[1771834235531,4.92004942,79.09,79.064,12.64798138]
[1771834237118,17.56391038,79.09,79.064,12.64798138]
[1771834238025,4.92004942,79.07,79.044,12.65118162]
[1771834238212,4.92004942,79.07,79.045,35.96898031]
[1771834238610,4.92004942,79.07,79.045,36.5752121]
[1771834239129,4.92004942,79.08,79.046,0.60623179]
[1771834239322,17.56391038,79.09,79.048,0.60623179]
[1771834241338,17.56391038,79.09,79.05,0.60623179]
[1771834241835,12.64386096,79.09,79.05,0.60623179]
[1771834242040,4.92004942,79.1,79.052,0.60623179]
[1771834242226,4.92004942,79.1,79.053,0.60623179]
[1771834243739,12.64254469,79.098,79.055,0.60623179]
[1771834244434,4.92004942,79.09,79.055,0.60623179]
[1771834247142,4.92004942,79.09,79.057,0.60623179]
[1771834247329,4.92004942,79.09,79.059,0.60623179]
[1771834251342,4.92004942,79.09,79.06,12.6486213]
[1771834251525,4.92004942,79.09,79.06,13.25485309]
[1771834252543,12.64398336,79.089,79.06,13.25485309]
[1771834253146,12.64398336,79.089,79.061,35.96898031]
[1771834256649,4.92004942,79.09,79.062,12.64830133]
[1771834256831,12.64352347,79.092,79.062,12.64830133]
[1771834257162,4.92004942,79.09,79.062,12.64830133]
[1771834258642,4.92004942,79.09,79.062,13.25453312]
[1771834259030,4.92004942,79.09,79.063,35.96898031]
[1771834259344,4.92004942,79.09,79.063,36.5752121]
[1771834260143,4.92004942,79.09,79.064,0.60623179]
[1771834260447,12.6430431,79.095,79.064,0.60623179]
[1771834261367,12.64238485,79.099,79.066,0.60623179]
[1771834262954,12.64110634,79.107,79.068,0.60623179]
[1771834263136,12.64110634,79.107,79.065,44.26737494]
[1771834263137,6.6096161,79.108,79.07,0.60623179]
[1771834263331,19.25061976,79.108,79.072,0.60623179]
[1771834263530,12.64100366,79.108,79.072,0.60623179]
[1771834263953,4.92004942,79.11,79.072,0.60623179]
[1771834264147,12.6397017,79.116,79.072,0.60623179]
[1771834264454,4.92004942,79.11,79.072,0.60623179]
[1771834264750,12.6397017,79.116,79.072,0.60623179]
[1771834264933,17.55908366,79.12,79.072,0.60623179]
[1771834267752,0.02055381,79.119,79.074,0.60623179]
[1771834270750,0.02055381,79.119,79.077,0.60623179]
[1771834272931,0.02055381,79.119,79.079,0.60623179]
[1771834274152,0.02055381,79.119,79.081,0.60623179]
[1771834275358,0.02055381,79.119,79.082,44.25785892]
[1771834275551,0.02055381,79.119,79.083,0.60623179]
[1771834275947,0.0252306,79.125,79.083,0.60623179]
[1771834276147,0.0252306,79.138,79.085,0.60623179]
[1771834276338,0.0252306,79.142,79.09,0.60623179]
[1771834276539,0.0252306,79.142,79.092,0.60623179]
[1771834277642,0.02687592,79.149,79.094,0.60623179]
[1771834277958,0.02687592,79.149,79.099,0.60623179]
[1771834279676,0.02687592,79.149,79.1,158.02781287]
[1771834279858,0.0284652,79.159,79.101,0.60623179]
[1771834280054,0.0284652,79.159,79.103,0.60623179]
[1771834280841,0.02898284,79.164,79.108,0.60623179]
[1771834281056,0.02898284,79.169,79.108,0.60623179]
[1771834281766,0.02898284,79.169,79.112,3.69383402]
[1771834281944,0.02898284,79.169,79.113,0.60623179]
[1771834282476,0.02898284,79.169,79.118,0.60623179]
[1771834282764,0.02898284,79.169,79.12,0.60623179]
[1771834285272,0.02898284,79.169,79.122,0.60623179]
[1771834287196,0.1,79.17,79.13,0.60623179]
[1771834287347,0.03196617,79.169,79.13,0.60623179]
[1771834287665,0.03196617,79.169,79.132,0.60623179]
[1771834288256,0.1,79.17,79.132,0.60623179]
[1771834290372,0.1,79.17,79.131,35.96898031]
[1771834290373,0.1,79.17,79.135,0.60623179]
[1771834290668,0.1,79.17,79.137,0.60623179]